bitfinex/quotes_SOLUSD_20240605
["timestamp","ask_amount","ask_price","bid_price","bid_amount"]
[1717611756347,0.34,173.89,173.87,0.828523]
[1717611760356,0.34,173.89,173.87,2.956523]
[1717611761765,0.34,173.89,173.87,0.828523]
[1717611762078,0.34,173.89,173.87,2.956523]
[1717611762456,0.34,173.89,173.87,0.828523]
[1717611766687,0.34,173.89,173.87,2.956523]
[1717611768783,0.34,173.89,173.87,0.828523]
[1717611769279,0.34,173.89,173.87,2.956523]
[1717611770065,0.34,173.89,173.87,2.956423]
[1717611771282,0.34,173.89,173.87,0.828523]
[1717611772365,0.34,173.89,173.87,2.956423]
[1717611773178,0.17,173.88,173.87,0.828523]
[1717611773381,2.2979,173.88,173.87,0.828523]
[1717611773770,0.34,173.88,173.87,0.828523]
[1717611774089,8.7834,173.88,173.87,0.828523]
[1717611775385,15.9234,173.88,173.87,0.828523]
[1717611776781,8.7834,173.88,173.87,0.828523]
[1717611777089,15.9234,173.88,173.87,0.828523]
[1717611777394,0.34,173.88,173.87,0.828523]
[1717611779483,2.4679,173.88,173.87,0.828523]
[1717611779680,9.6079,173.88,173.87,0.828523]
[1717611779989,13.8637,173.88,173.87,0.828523]
[1717611780168,2.4679,173.88,173.87,0.828523]
[1717611781885,24.1019,173.88,173.87,0.828523]
[1717611782191,84.873,173.88,173.87,0.828523]
[1717611783492,129.873,173.88,173.87,0.828523]
[1717611784197,135.87299722,173.88,173.87,0.828523]
[1717611784399,90.87299722,173.88,173.87,0.828523]
[1717611784598,42.60789722,173.88,173.87,0.828523]
[1717611784801,8.12789722,173.88,173.87,0.828523]
[1717611785386,5.99999722,173.88,173.87,0.828523]
[1717611785586,36.6077,173.9,173.87,0.828523]
[1717611785790,2.1277,173.9,173.87,0.828523]
[1717611786191,2.1277,173.89,173.87,0.828523]
[1717611787283,2.4679,173.88,173.87,0.828523]
[1717611791190,9.6079,173.88,173.87,0.828523]
[1717611791900,0.34,173.88,173.87,0.828523]
[1717611793500,2.4679,173.88,173.87,0.828523]
[1717611793808,0.34,173.88,173.87,0.828523]
[1717611794708,2.4679,173.88,173.87,0.828523]
[1717611796107,69.2626,173.88,173.87,0.828523]
[1717611799411,84.8747,173.88,173.87,0.828523]
[1717611799593,137.0147,173.88,173.87,0.828523]
[1717611800615,158.4347,173.88,173.87,0.828523]
[1717611801703,164.43538308,173.88,173.87,0.828523]
[1717611804209,2.1288,173.81,173.79,0.03578671]
[1717611804413,0.34,173.8,173.79,0.03578671]
[1717611805201,2.4688,173.8,173.79,0.03578671]
[1717611805505,48.3465,173.8,173.79,0.03578671]
[1717611805700,54.7331,173.8,173.79,0.03578671]
[1717611806620,2.1292,173.77,173.73,9.19669481]
[1717611806820,0.34,173.76,173.73,9.19669481]
[1717611807220,0.34,173.76,173.72,2.1297]
[1717611807419,0.34,173.76,173.72,7.14]
[1717611807616,0.34,173.76,173.73,2.1297]
[1717611808720,2.1295,173.75,173.7,2.13]
[1717611808916,0.17,173.74,173.7,8.7423]
[1717611809131,0.34,173.74,173.71,2.1299]
[1717611809327,0.34,173.74,173.69,0.828523]
[1717611809508,2.1298,173.73,173.69,0.828523]
[1717611809709,2.4698,173.72,173.69,0.828523]
[1717611809931,0.34,173.72,173.69,0.828523]
[1717611810420,0.34,173.72,173.69,2.958723]
[1717611810629,2.4698,173.72,173.69,0.828523]
[1717611810830,0.34,173.72,173.69,2.958723]
[1717611811129,41.62,173.76,173.7,2.13]
[1717611811337,0.34,173.75,173.7,9.27]
[1717611811941,2.1298,173.73,173.69,0.828523]
[1717611812235,0.17,173.72,173.69,10.098623]
[1717611812409,0.17,173.72,173.7,2.13]
[1717611812615,0.17,173.72,173.69,7.968523]
[1717611812814,0.17,173.72,173.7,2.13]
[1717611813032,2.1296,173.74,173.7,2.13]
[1717611813033,0.34,173.73,173.7,2.13]
[1717611813625,0.34,173.73,173.69,7.968523]
[1717611813813,0.34,173.73,173.69,10.098623]
[1717611814737,2.4697,173.73,173.69,10.098623]
[1717611815042,2.4697,173.73,173.69,2.958623]
[1717611815417,2.4697,173.73,173.69,10.098623]
[1717611815619,6.2237,173.6,173.57,9.2715]
[1717611815939,7.14,173.58,173.48,6.3265]
[1717611816144,0.34,173.59,173.48,6.3265]
[1717611816540,34.48,173.58,173.48,6.3265]
[1717611816714,9.2721,173.54,173.48,8.4592]
[1717611816914,4.6034,173.57,173.44,0.3912081]
[1717611816915,0.34,173.53,173.44,0.3912081]
[1717611817217,2.4721,173.53,173.46,7.14]
[1717611817443,9.6121,173.53,173.45,2.133]
[1717611817748,2.4721,173.53,173.44,0.3912081]
[1717611817921,0.34,173.53,173.49,7.14]
[1717611818128,0.34,173.53,173.48,2.1327]
[1717611818333,0.34,173.53,173.49,2.1326]
[1717611818530,0.34,173.53,173.45,4.2661]
[1717611818842,0.34,173.53,173.5,7.14]
[1717611819229,0.34,173.53,173.48,2.1328]
[1717611819534,0.34,173.53,173.49,7.14]
[1717611819736,0.17,173.53,173.49,2.1326]
[1717611819930,36.6115,173.59,173.52,2.960823]
[1717611820323,2.1315,173.59,173.52,2.960823]
[1717611820729,2.1313,173.6,173.52,2.960823]
[1717611820926,2.1314,173.59,173.52,2.960823]
[1717611821530,2.1314,173.59,173.52,0.828523]
[1717611822342,34.48,173.62,173.52,0.828523]
[1717611823058,2.1313,173.61,173.54,2.132]
[1717611823244,2.1312,173.61,173.54,2.132]
[1717611823939,2.1313,173.6,173.53,8.6998]
[1717611824137,2.1314,173.59,173.52,0.828523]
[1717611824328,2.1317,173.57,173.52,0.828523]
[1717611824934,2.1316,173.58,173.52,0.828523]
[1717611825140,0.34,173.57,173.52,0.828523]
[1717611825838,2.132,173.55,173.52,0.828523]
[1717611826038,2.132,173.54,173.52,0.828523]
[1717611826639,34.65,173.53,173.44,0.3912081]
[1717611826937,34.65,173.53,173.34,0.828523]
[1717611826938,2.1338,173.4,173.34,0.828523]
[1717611827140,34.48,173.44,173.37,2.134]
[1717611827441,2.1335,173.42,173.34,0.828523]
[1717611827621,2.1336,173.41,173.35,2.1343]
[1717611828055,2.3037,173.4,173.35,2.1343]
[1717611828229,2.1336,173.41,173.35,1.6343]
[1717611828543,2.4734,173.43,173.37,2.134]
[1717611828718,2.4734,173.43,173.34,0.828523]
[1717611828924,0.34,173.43,173.38,2.134]
[1717611829243,0.17,173.43,173.34,0.828523]
[1717611829423,0.34,173.43,173.34,0.828523]
[1717611829624,2.1336,173.42,173.36,2.1342]
[1717611829820,2.4734,173.43,173.37,2.1341]
[1717611830136,2.3034,173.43,173.37,2.1341]
[1717611830341,0.17,173.43,173.38,2.134]
[1717611830646,2.1332,173.45,173.39,2.1339]
[1717611830839,34.48,173.49,173.4,2.1337]
[1717611831027,2.1331,173.45,173.39,2.1338]
[1717611831543,0.17,173.46,173.39,2.1338]
[1717611831727,2.1331,173.45,173.39,2.1339]
[1717611831927,2.3033,173.44,173.38,2.134]
[1717611832119,2.1333,173.44,173.38,2.134]
[1717611832642,2.4734,173.43,173.37,2.1341]
[1717611833149,0.34,173.43,173.38,2.134]
[1717611833554,0.17,173.43,173.38,2.134]
[1717611833856,2.1332,173.45,173.39,2.1339]
[1717611834149,0.17,173.44,173.39,2.1338]
[1717611834744,2.3033,173.44,173.38,2.1339]
[1717611834936,2.1333,173.44,173.38,2.1339]
[1717611835133,2.1333,173.44,173.35,4.2686]
[1717611835433,2.1333,173.44,173.36,45.0]
[1717611835633,2.1332,173.45,173.39,2.1338]
[1717611836141,2.1332,173.45,173.4,2.1337]
[1717611836554,2.3031,173.46,173.4,2.1337]
[1717611836750,0.17,173.46,173.38,2.1339]
[1717611836952,2.1333,173.44,173.38,2.1339]
[1717611837345,8.8718,173.47,173.35,6.0448]
[1717611837528,2.1334,173.43,173.35,6.0448]
[1717611837727,2.1336,173.41,173.36,2.1342]
[1717611838046,0.17,173.44,173.35,2.1343]
[1717611838254,2.1337,173.41,173.35,2.1343]
[1717611838552,4.6068,173.44,173.34,0.828523]
[1717611838553,2.1335,173.42,173.36,2.1342]
[1717611839749,2.1334,173.43,173.38,2.1339]
[1717611840341,2.4733,173.44,173.38,2.1339]
[1717611840548,2.1333,173.44,173.38,2.1339]
[1717611841042,2.1332,173.45,173.39,2.1338]
[1717611841241,10.26648676,173.48,173.39,2.1338]
[1717611841441,2.1333,173.44,173.36,4.2685]
[1717611841648,2.1332,173.45,173.4,2.1337]
[1717611841950,2.1332,173.45,173.39,2.1338]
[1717611842138,2.1332,173.45,173.4,2.1337]
[1717611842335,4.2659,173.47,173.37,45.0]
[1717611842336,2.1333,173.44,173.39,2.1338]
[1717611844057,2.1332,173.45,173.39,2.1338]
[1717611844265,2.1333,173.44,173.39,2.1338]
[1717611844863,4.2649,173.51,173.4,4.2675]
[1717611845059,2.1327,173.49,173.43,2.1333]
[1717611845240,8.1334687,173.52,173.46,2.133]
[1717611845440,2.1324,173.51,173.45,2.1331]
[1717611845662,2.1323,173.52,173.46,2.133]
[1717611846149,2.1321,173.54,173.48,2.1327]
[1717611846344,2.1318,173.56,173.5,2.1325]
[1717611846963,2.1317,173.57,173.51,2.1323]
[1717611847153,2.1317,173.57,173.49,4.2651]
[1717611847356,2.1316,173.58,173.5,45.0]
[1717611847560,2.1316,173.58,173.52,2.1322]
[1717611847961,2.1315,173.58,173.52,2.1322]
[1717611848266,2.1315,173.59,173.53,2.1321]
[1717611849153,2.1313,173.6,173.54,2.132]
[1717611849546,8.13487186,173.61,173.55,2.1319]
[1717611849747,2.1311,173.62,173.55,2.1319]
[1717611849948,2.1312,173.61,173.55,2.1319]
[1717611850342,46.48144053,173.64,173.52,45.0]
[1717611850548,2.1316,173.58,173.52,47.1322]
[1717611850747,2.1315,173.59,173.52,47.1322]
[1717611850965,2.1315,173.59,173.53,2.1321]
[1717611851363,2.1318,173.56,173.5,2.1325]
[1717611851565,2.1318,173.57,173.51,2.1323]
[1717611851866,0.34,173.58,173.47,6.5053]
[1717611852067,2.1318,173.56,173.5,2.1324]
[1717611852872,2.1317,173.57,173.51,2.1324]
[1717611853667,2.1318,173.56,173.51,2.1324]
[1717611853847,2.1317,173.57,173.51,2.1324]
[1717611854264,2.1317,173.57,173.52,2.1322]
[1717611854567,2.4716,173.58,173.53,2.1321]
[1717611854865,2.1315,173.59,173.53,2.1321]
[1717611855063,0.17,173.6,173.53,2.1321]
[1717611855366,12.00144053,173.64,173.51,21.52]
[1717611855676,8.12866853,173.64,173.58,2.1315]
[1717611855858,2.131,173.63,173.58,2.1315]
[1717611856254,8.12866853,173.64,173.58,2.1315]
[1717611856463,2.1309,173.63,173.58,2.1315]
[1717611856967,8.12856853,173.64,173.56,4.2636]
[1717611857174,8.12856853,173.64,173.58,2.1315]
[1717611857669,8.12866853,173.64,173.58,2.1315]
[1717611857872,2.1309,173.63,173.58,2.1315]
[1717611858250,8.12866853,173.64,173.58,2.1315]
[1717611858670,2.1309,173.63,173.58,2.1315]
[1717611859171,8.12856853,173.64,173.56,4.2636]
[1717611859354,2.131,173.62,173.57,2.1316]
[1717611859554,2.131,173.62,173.56,2.1317]
[1717611859756,2.131,173.63,173.57,2.1316]
[1717611860368,2.131,173.63,173.58,2.1315]
[1717611860679,2.131,173.63,173.57,2.1316]
[1717611860881,2.131,173.63,173.58,2.1315]
[1717611861175,2.1315,173.59,173.5,2.1324]
[1717611861351,12.37707327,173.62,173.49,4.2651]
[1717611861554,6.1079,173.6,173.45,25.7862]
[1717611861751,0.34,173.59,173.45,4.2662]
[1717611861954,2.1317,173.57,173.44,28.1856]
[1717611862164,2.4719,173.56,173.47,2.1329]
[1717611862456,2.4719,173.56,173.44,28.1856]
[1717611862457,2.1322,173.53,173.45,2.133]
[1717611862665,0.17,173.59,173.45,2.133]
[1717611862666,2.4721,173.54,173.45,2.133]
[1717611862872,0.17,173.53,173.45,2.133]
[1717611863080,2.3021,173.54,173.46,2.133]
[1717611863281,56.7638,173.6,173.44,28.1856]
[1717611863465,2.1316,173.58,173.49,2.1325]
[1717611863667,0.17,173.57,173.5,2.1325]
[1717611863874,0.34,173.57,173.5,2.1325]
[1717611864089,0.17,173.57,173.48,45.0]
[1717611864385,24.4152,173.6,173.48,45.0]
[1717611864569,0.17,173.59,173.52,2.1323]
[1717611864762,2.3014,173.59,173.51,2.1324]
[1717611864956,2.3014,173.59,173.5,2.1325]
[1717611865179,6.00332483,173.62,173.48,45.0]
[1717611865180,8.13442483,173.62,173.53,2.1321]
[1717611865479,8.3787,173.65,173.48,78.4153]
[1717611865681,8.3787,173.65,173.57,2.1316]
[1717611866975,2.1308,173.64,173.56,2.1318]
[1717611867181,2.1308,173.65,173.56,2.1318]
[1717611867382,2.1308,173.65,173.57,2.1316]
[1717611869379,6.00190315,173.66,173.59,2.1314]
[1717611869577,2.1306,173.66,173.59,2.1314]
[1717611869759,2.1306,173.66,173.58,2.1315]
[1717611870487,2.1307,173.65,173.58,2.1315]
[1717611870785,2.1308,173.64,173.57,2.1316]
[1717611870995,2.1307,173.65,173.58,2.1315]
[1717611871588,2.1308,173.64,173.57,2.1316]
[1717611872980,2.1311,173.62,173.55,2.1318]
[1717611873180,0.34,173.63,173.54,2.132]
[1717611873361,2.1312,173.61,173.55,2.1319]
[1717611873564,2.1311,173.62,173.55,2.1319]
[1717611873784,21.4224,173.61,173.47,6.3986]
[1717611873984,0.34,173.63,173.44,6.5001]
[1717611874182,8.7929,173.65,173.52,8.5289]
[1717611874374,8.7929,173.65,173.58,2.1314]
[1717611874587,8.7929,173.65,173.59,2.1313]
[1717611874588,6.6621,173.65,173.59,2.1313]
[1717611874878,8.2098,173.67,173.6,2.1313]
[1717611874879,6.0793,173.67,173.6,2.1313]
[1717611875083,6.0793,173.67,173.61,1.15089317]
[1717611875275,6.0793,173.67,173.6,2.1312]
[1717611875457,6.0793,173.67,173.61,3.28189429]
[1717611875664,6.0793,173.67,173.62,1.15062832]
[1717611877189,6.0793,173.67,173.6,2.1313]
[1717611878761,6.0793,173.67,173.61,2.1311]
[1717611879791,6.0793,173.67,173.57,4.2633]
[1717611879974,8.12958989,173.71,173.58,45.0]
[1717611880180,5.99958989,173.71,173.63,2.1309]
[1717611880385,5.99958989,173.71,173.62,2.131]
[1717611881088,2.1301,173.7,173.63,2.1309]
[1717611881472,5.99958989,173.71,173.63,2.1309]
[1717611881684,2.1301,173.7,173.63,2.1309]
[1717611882290,2.1302,173.69,173.62,2.131]
[1717611883116,2.1301,173.7,173.62,2.131]
[1717611883687,5.99958989,173.71,173.62,2.131]
[1717611883891,5.99958989,173.71,173.59,23.6214]
[1717611884102,0.34,173.7,173.6,45.0]
[1717611884283,2.1303,173.69,173.61,2.1311]
[1717611884679,2.4701,173.7,173.6,45.0]
[1717611885399,2.4701,173.7,173.63,2.1309]
[1717611885776,2.1302,173.69,173.62,2.131]
[1717611885977,2.1303,173.68,173.61,2.1311]
[1717611886181,2.1302,173.69,173.62,2.131]
[1717611886398,2.1302,173.69,173.63,2.1309]
[1717611886600,2.4701,173.7,173.63,2.1309]
[1717611887105,2.1302,173.69,173.63,2.1309]
[1717611887587,2.1302,173.69,173.62,2.131]
[1717611888405,5.99958989,173.71,173.62,21.49]
[1717611888619,8.2609,173.74,173.67,2.1304]
[1717611888783,2.1296,173.74,173.67,2.1304]
[1717611890113,8.135028,173.76,173.69,2.1301]
[1717611890315,2.1295,173.75,173.69,2.1302]
[1717611890533,2.1295,173.75,173.69,47.1302]
[1717611891315,2.1296,173.74,173.69,45.0]
[1717611891617,2.1297,173.73,173.67,2.1303]
[1717611892003,2.1296,173.74,173.67,2.1303]
[1717611892920,6.005728,173.76,173.7,2.13]
[1717611893217,0.17,173.75,173.69,2.1301]
[1717611893425,0.17,173.75,173.66,49.261]
[1717611893426,2.2995,173.75,173.68,2.1302]
[1717611894508,2.2995,173.75,173.69,2.1301]
[1717611896309,0.17,173.75,173.66,49.261]
[1717611896509,0.17,173.75,173.69,2.1301]
[1717611896690,2.2995,173.75,173.69,2.1301]
[1717611898122,0.17,173.74,173.63,25.7516]
[1717611898414,4.2595,173.73,173.64,45.0]
[1717611898617,2.13,173.71,173.64,45.0]
[1717611898835,0.17,173.7,173.64,45.0]
[1717611898996,2.13,173.71,173.65,2.1306]
[1717611899197,0.17,173.7,173.65,2.1306]
[1717611901015,0.17,173.7,173.57,21.49]
[1717611901016,2.1307,173.65,173.57,21.49]
[1717611901220,0.17,173.66,173.6,2.1312]
[1717611901605,2.3006,173.66,173.6,2.1312]
[1717611901918,0.17,173.66,173.63,2.1309]
[1717611902103,8.4096,173.69,173.64,2.1308]
[1717611902305,0.34,173.7,173.6,21.49]
[1717611902502,0.17,173.7,173.6,21.49]
[1717611902733,0.17,173.7,173.65,2.1307]
[1717611903093,0.17,173.7,173.66,2.1305]
[1717611903287,2.1299,173.72,173.67,2.1304]
[1717611903499,6.3962,173.73,173.67,2.1304]
[1717611903700,2.1298,173.72,173.67,2.1304]
[1717611904426,6.3962,173.73,173.64,45.0]
[1717611904601,2.1297,173.74,173.68,2.1302]
[1717611904801,2.1295,173.75,173.69,2.1301]
[1717611904996,2.1298,173.73,173.68,2.1302]
[1717611905209,4.2588,173.76,173.67,45.0]
[1717611905401,4.2588,173.76,173.68,2.1302]
[1717611905602,2.1297,173.74,173.69,2.1302]
[1717611906291,0.34,173.73,173.66,45.0]
[1717611906599,10.6494,173.72,173.61,21.49]
[1717611906793,2.1303,173.69,173.64,2.1307]
[1717611906993,8.6191,173.71,173.66,2.1305]
[1717611907218,6.4891,173.71,173.63,4.2618]
[1717611907613,2.1301,173.7,173.65,2.1306]
[1717611907918,0.17,173.69,173.65,2.1306]
[1717611908817,0.17,173.69,173.67,2.1304]
[1717611909019,0.17,173.71,173.67,2.1304]
[1717611909216,0.34,173.71,173.67,2.1304]
[1717611909519,6.477,173.74,173.64,4.2616]
[1717611909825,2.4697,173.73,173.68,2.1303]
[1717611910025,6.5543,173.73,173.65,49.2613]
[1717611910339,6.5543,173.73,173.68,2.1303]
[1717611910340,8.684,173.73,173.68,2.1303]
[1717611912537,2.1295,173.75,173.7,2.13]
[1717611914036,6.00455345,173.77,173.72,2.1297]
[1717611914337,49.8158,173.84,173.74,2.1296]
[1717611914338,2.129,173.79,173.74,2.1296]
[1717611914539,10.6436,173.82,173.71,4.2598]
[1717611914540,2.1291,173.78,173.73,2.1297]
[1717611915134,4.2578,173.8,173.72,45.0]
[1717611915433,2.1292,173.78,173.73,2.1297]
[1717611916310,2.129,173.79,173.74,2.1295]
[1717611916727,2.1291,173.78,173.73,2.1296]
[1717611918818,2.1291,173.78,173.74,2.1296]
[1717611919620,2.1291,173.78,173.71,49.2599]
[1717611919621,2.1291,173.78,173.73,2.1296]
[1717611920231,2.129,173.79,173.74,2.1295]
[1717611920917,2.1291,173.78,173.74,2.1295]
[1717611921229,2.129,173.79,173.74,2.1295]
[1717611921527,2.1289,173.8,173.75,2.1294]
[1717611921732,2.1288,173.81,173.76,2.1293]
[1717611922241,2.1288,173.8,173.75,2.1294]
[1717611922929,2.1292,173.77,173.73,2.1296]
[1717611923254,6.3866,173.8,173.72,45.0]
[1717611923409,2.1292,173.78,173.72,2.1297]
[1717611923617,2.1292,173.78,173.73,2.1297]
[1717611924220,0.17,173.77,173.68,4.2606]
[1717611924417,2.1294,173.76,173.7,2.13]
[1717611924619,2.1295,173.75,173.7,2.13]
[1717611924835,0.34,173.77,173.71,2.1299]
[1717611925142,10.645,173.79,173.7,2.13]
[1717611925143,2.1294,173.76,173.7,2.13]
[1717611925434,2.1293,173.77,173.72,2.1298]
[1717611925646,2.1292,173.77,173.69,4.2603]
[1717611925943,2.1292,173.77,173.7,45.0]
[1717611926124,2.1292,173.77,173.72,2.1298]
[1717611926524,2.1292,173.77,173.7,45.0]
[1717611926727,2.1292,173.77,173.72,2.1298]
[1717611926920,2.1292,173.77,173.71,2.1299]
[1717611927124,0.34,173.78,173.71,2.1299]
[1717611927125,2.2993,173.76,173.71,2.1299]
[1717611927326,2.1293,173.76,173.71,2.1299]
[1717611927826,2.1292,173.77,173.69,4.2603]
[1717611928009,0.17,173.76,173.72,2.1298]
[1717611928208,0.17,173.78,173.73,2.1296]
[1717611928443,10.6434,173.82,173.75,2.1294]
[1717611928444,0.17,173.79,173.75,2.1294]
[1717611928736,2.1289,173.8,173.75,2.1294]
[1717611928929,2.1288,173.81,173.75,2.1294]
[1717611929533,2.1288,173.8,173.75,2.1294]
[1717611930037,2.2988,173.81,173.76,2.1293]
[1717611930338,2.1288,173.81,173.76,2.1293]
[1717611931032,2.1288,173.81,173.75,2.1294]
[1717611931229,2.1288,173.81,173.76,2.1293]
[1717611932522,2.1289,173.8,173.75,2.1294]
[1717611932827,2.1288,173.81,173.76,2.1293]
[1717611933045,0.17,173.82,173.71,12.7796]
[1717611933247,4.258,173.79,173.68,8.5211]
[1717611933554,2.2991,173.78,173.73,2.1296]
[1717611933725,0.17,173.78,173.73,2.1296]
[1717611933926,0.17,173.78,173.74,2.1295]
[1717611934844,2.2991,173.78,173.74,2.1295]
[1717611935239,0.17,173.78,173.74,2.1295]
[1717611935550,2.2989,173.8,173.66,17.26]
[1717611935723,2.1289,173.8,173.72,8.5192]
[1717611936064,2.1289,173.8,173.75,2.1294]
[1717611936737,2.129,173.79,173.73,49.2594]
[1717611936935,8.3049,173.82,173.77,2.1292]
[1717611937137,2.1287,173.81,173.77,2.1292]
[1717611937345,6.2178,173.81,173.75,2.1294]
[1717611937528,2.1291,173.78,173.74,2.1295]
[1717611937731,2.1293,173.77,173.72,2.1297]
[1717611937930,6.2178,173.77,173.71,2.1299]
[1717611938252,2.1295,173.75,173.7,2.13]
[1717611938624,8.9183,173.76,173.71,2.1299]
[1717611938828,8.9183,173.76,173.72,2.1297]
[1717611938829,6.7889,173.76,173.72,2.1297]
[1717611939534,8.9183,173.76,173.71,2.1299]
[1717611939737,6.7889,173.76,173.72,2.1298]
[1717611939949,6.7889,173.76,173.73,2.1297]
[1717611940260,6.5766,173.78,173.74,2.1295]
[1717611940435,0.17,173.77,173.73,2.1296]
[1717611941231,2.1292,173.77,173.72,2.1298]
[1717611941730,8.7057,173.78,173.73,2.1297]
[1717611942226,6.5766,173.78,173.72,2.1298]
[1717611943047,2.1294,173.76,173.71,2.1299]
[1717611943259,8.7521,173.75,173.7,2.13]
[1717611943463,6.6226,173.75,173.71,2.1298]
[1717611944163,8.7521,173.75,173.71,2.1299]
[1717611944359,6.6226,173.75,173.71,2.1299]
[1717611944858,8.65,173.77,173.73,2.1297]
[1717611945055,6.5207,173.77,173.73,2.1297]
[1717611945957,8.6499,173.77,173.72,2.1298]
[1717611947558,2.1293,173.76,173.71,2.1299]
[1717611947933,2.1294,173.76,173.71,2.1299]
[1717611948133,8.5908,173.76,173.71,2.1299]
[1717611949062,6.4614,173.76,173.72,2.1297]
[1717611950963,6.4614,173.76,173.73,2.1297]
[1717611951173,6.4614,173.76,173.72,2.1297]
[1717611953045,6.786,173.78,173.73,2.1297]
[1717611953266,6.786,173.78,173.68,20.0]
[1717611953267,8.9151,173.78,173.74,2.1296]
[1717611953771,2.1292,173.77,173.73,2.1297]
[1717611954149,8.7386,173.77,173.72,2.1297]
[1717611954558,8.7386,173.77,173.73,2.1297]
[1717611954863,6.6094,173.77,173.73,2.1296]
[1717611955955,6.251,173.8,173.68,20.0]
[1717611956154,2.1289,173.8,173.75,2.1294]
[1717611956470,8.3799,173.8,173.75,2.1294]
[1717611956875,2.129,173.79,173.75,2.1294]
[1717611957173,2.129,173.79,173.74,2.1295]
[1717611957366,2.1292,173.78,173.73,2.1297]
[1717611957873,2.1293,173.77,173.72,2.1298]
[1717611958049,0.17,173.78,173.69,45.0]
[1717611958250,2.1292,173.77,173.73,2.1297]
[1717611958471,2.1294,173.76,173.69,45.0]
[1717611958662,8.465,173.77,173.72,2.1297]
[1717611958850,8.465,173.77,173.69,45.0]
[1717611959057,2.1293,173.76,173.71,2.1299]
[1717611959365,6.3358,173.76,173.72,2.1298]
[1717611959959,8.4651,173.76,173.72,2.1298]
[1717611960656,6.3358,173.76,173.72,2.1298]
[1717611960850,8.4652,173.76,173.71,2.1299]
[1717611961169,8.4652,173.76,173.72,2.1298]
[1717611961372,6.3358,173.76,173.72,2.1298]
[1717611961887,8.4672,173.78,173.74,2.1296]
[1717611962062,8.2972,173.78,173.73,2.1296]
[1717611964373,16.8114,173.82,173.75,2.1294]
[1717611964564,2.1289,173.8,173.75,2.1294]
[1717611964773,6.2574,173.79,173.74,2.1295]
[1717611964977,2.1292,173.77,173.73,2.1296]
[1717611965297,2.1292,173.77,173.72,2.1297]
[1717611965668,2.1291,173.78,173.73,2.1297]
[1717611966786,2.1293,173.76,173.72,2.1298]
[1717611966983,8.315,173.76,173.71,2.1299]
[1717611967280,8.315,173.76,173.68,41.47]
[1717611967590,6.1857,173.76,173.72,2.1298]
[1717611970086,6.1857,173.76,173.73,7.16]
[1717611970792,0.17,173.75,173.71,2.1299]
[1717611971092,6.366,173.69,173.65,7.16]
[1717611971287,8.4962,173.69,173.65,7.16]
[1717611971662,6.366,173.69,173.65,9.2906]
[1717611971864,6.366,173.69,173.65,2.1306]
[1717611973365,8.4962,173.69,173.65,2.1306]
[1717611973769,6.366,173.69,173.65,2.1306]
[1717611974392,8.4962,173.69,173.65,2.1306]
[1717611974566,6.366,173.69,173.65,2.1306]
[1717611975985,8.4962,173.69,173.65,2.1306]
[1717611978372,8.4962,173.69,173.64,2.1307]
[1717611978889,8.4962,173.69,173.65,2.1306]